fUST/lending_fUST_20240714
["ID","MTS","AMOUNT","RATE_DAILY","PERIOD"]
[332111230,1720968639008,-154.51328316,0.00023968,2]
[332111231,1720968639018,-172.0,0.00024,2]
[332111233,1720968639027,-841.30627769,0.00024449,2]
[332111235,1720968639036,-1000.0,0.000245,2]
[332111237,1720968639046,-27035.2493263,0.00024647,3]
[332111239,1720968639056,-290.19,0.00024647,3]
[332111241,1720968639066,-870.6,0.00024647,3]
[332111243,1720968639076,-500.0,0.00024657,2]
[332111245,1720968639086,-500.0,0.00024657,2]
[332111247,1720968639096,-500.0,0.00024657,2]
[332111249,1720968639106,-500.0,0.00024657,2]
[332111251,1720968639115,-500.0,0.00024657,2]
[332111253,1720968639125,-500.0,0.00024657,2]
[332111255,1720968639134,-500.0,0.00024657,2]
[332111257,1720968639144,-500.0,0.00024657,2]
[332111259,1720968639154,-500.0,0.00024657,2]
[332111261,1720968639163,-500.0,0.00024657,2]
[332111263,1720968639173,-500.0,0.00024657,2]
[332111265,1720968639182,-584.38836503,0.00024657,2]
[332111267,1720968639193,-500.0,0.00024657,2]
[332111269,1720968639203,-500.0,0.00024657,2]
[332111271,1720968639213,-500.0,0.00024657,2]
[332111273,1720968639223,-500.0,0.00024657,2]
[332111275,1720968639233,-500.0,0.00024657,2]
[332111277,1720968639242,-500.0,0.00024657,2]
[332111279,1720968639253,-500.0,0.00024657,2]
[332111281,1720968639266,-500.0,0.00024657,2]
[332111283,1720968639276,-477.1380964,0.00024657,2]
[332111285,1720968639286,-500.0,0.00024657,2]
[332111287,1720968639295,-500.0,0.00024657,2]
[332111289,1720968639307,-500.0,0.00024657,2]
[332111291,1720968639317,-501.66229279,0.00024657,2]
[332111294,1720968639331,-500.0,0.00024657,2]
[332111296,1720968639341,-551.06314001,0.00024657,2]
[332111298,1720968639351,-500.0,0.00024657,2]
[332111300,1720968639360,-500.0,0.00024657,2]
[332111302,1720968639370,-500.0,0.00024657,2]
[332111304,1720968639380,-407.47410239,0.00024657,2]
[332111306,1720968639389,-500.0,0.00024657,2]
[332111308,1720968639399,-500.0,0.00024657,2]
[332111310,1720968639409,-500.0,0.00024657,2]
[332111312,1720968639418,-500.0,0.00024657,2]
[332111314,1720968639429,-500.0,0.00024657,2]
[332111316,1720968639439,-500.0,0.00024657,2]
[332111317,1720968639448,-500.0,0.00024657,4]
[332111319,1720968639458,-500.0,0.00024657,2]
[332111321,1720968639467,-502.76646789,0.00024657,2]
[332111323,1720968639477,-510.56230659,0.00024657,2]
[332111326,1720968639488,-500.0,0.00024657,2]
[332111338,1720968639597,-500.0,0.00024657,2]
[332111339,1720968639609,-500.0,0.00024657,2]
[332111340,1720968639619,-500.0,0.00024657,2]
[332111341,1720968639628,-274.01692338,0.00024657,2]
[332111342,1720968639638,-500.0,0.00024657,2]
[332111343,1720968639648,-500.0,0.00024657,2]
[332111344,1720968639658,-500.0,0.00024657,2]
[332111345,1720968639667,-500.0,0.00024657,2]
[332111346,1720968639677,-500.0,0.00024657,2]
[332111347,1720968639686,-500.0,0.00024657,2]
[332111348,1720968639696,-500.0,0.00024657,2]
[332111349,1720968639705,-500.0,0.00024657,2]
[332111350,1720968639715,-500.0,0.00024657,2]
[332111351,1720968639724,-500.0,0.00024657,2]
[332111352,1720968639734,-500.0,0.00024657,2]
[332111353,1720968639744,-500.0,0.00024657,2]
[332111354,1720968639754,-195.47146964,0.00024657,2]
[332111355,1720968639764,-500.0,0.00024657,2]
[332111356,1720968639774,-500.0,0.00024657,2]
[332111357,1720968639783,-252.03938872,0.00024657,2]
[332111358,1720968639792,-500.0,0.00024657,2]
[332111359,1720968639802,-500.0,0.00024657,2]
[332111360,1720968639811,-500.0,0.00024657,2]
[332111361,1720968639821,-500.0,0.00024657,2]
[332111362,1720968639832,-500.0,0.00024657,2]
[332111363,1720968639841,-513.84009734,0.00024657,2]
[332111364,1720968639851,-500.0,0.00024657,2]
[332111365,1720968639860,-500.0,0.00024657,2]
[332111366,1720968639869,-500.0,0.00024657,2]
[332111367,1720968639879,-500.0,0.00024657,2]
[332111368,1720968639888,-500.0,0.00024657,2]
[332111369,1720968639898,-500.0,0.00024657,2]
[332111370,1720968639908,-500.0,0.00024657,2]
[332111371,1720968639917,-500.0,0.00024657,2]
[332111372,1720968639927,-506.28757041,0.00024657,2]
[332111373,1720968639940,-500.0,0.00024657,2]
[332111374,1720968639949,-500.0,0.00024657,2]
[332111375,1720968639958,-500.0,0.00024657,2]
[332111376,1720968639972,-500.0,0.00024657,2]
[332111377,1720968639981,-500.0,0.00024657,2]
[332111378,1720968639991,-500.0,0.00024657,2]
[332111380,1720968640001,-500.0,0.00024657,2]
[332111382,1720968640010,-540.091805,0.00024657,2]
[332111384,1720968640019,-497.98760805,0.00024657,2]
[332111386,1720968640029,-500.0,0.00024657,2]
[332111388,1720968640038,-500.0,0.00024657,2]
[332111390,1720968640048,-500.0,0.00024657,2]
[332111392,1720968640058,-500.0,0.00024657,2]
[332111394,1720968640067,-500.93733771,0.00024657,2]
[332111396,1720968640076,-500.0,0.00024657,2]
[332111398,1720968640085,-500.0,0.00024657,2]
[332111400,1720968640095,-500.0,0.00024657,2]
[332111401,1720968640104,-500.0,0.00024657,2]
[332111402,1720968640113,-500.0,0.00024657,2]
[332111403,1720968640123,-500.0,0.00024657,2]
[332111404,1720968640132,-500.0,0.00024657,2]
[332111405,1720968640142,-500.0,0.00024657,2]
[332111406,1720968640151,-500.0,0.00024657,2]
[332111407,1720968640161,-500.0,0.00024657,2]
[332111408,1720968640173,-500.0,0.00024657,2]
[332111409,1720968640182,-500.0,0.00024657,2]
[332111410,1720968640194,-500.0,0.00024657,2]
[332111411,1720968640206,-500.0,0.00024657,2]
[332111412,1720968640216,-500.0,0.00024657,2]
[332111413,1720968640225,-421.3737535,0.00024657,2]
[332111434,1720968640875,-78.6262465,0.00024657,2]
[332111436,1720968640884,-500.0,0.00024657,2]
[332111438,1720968640894,-500.0,0.00024657,2]
[332111440,1720968640903,-500.0,0.00024657,2]
[332111442,1720968640912,-500.0,0.00024657,2]
[332111444,1720968640922,-500.0,0.00024657,2]
[332111446,1720968640931,-500.0,0.00024657,2]
[332111448,1720968640940,-377.01129531,0.00024657,2]
[332111450,1720968640950,-515.39709604,0.00024657,2]
[332111451,1720968640959,-500.0,0.00024657,2]
[332111453,1720968640968,-333.51595673,0.00024657,2]
[332111455,1720968640977,-500.0,0.00024657,2]
[332111457,1720968640986,-500.0,0.00024657,2]
[332111459,1720968640995,-502.52945941,0.00024657,2]
[332111460,1720968641005,-62.84069629,0.00024657,2]
[332111463,1720968641016,-437.15930371,0.00024657,2]
[332111464,1720968641025,-500.0,0.00024657,2]
[332111466,1720968641035,-500.0,0.00024657,2]
[332111468,1720968641044,-500.0,0.00024657,2]
[332111470,1720968641053,-500.0,0.00024657,2]
[332111472,1720968641062,-504.05971922,0.00024657,2]
[332111474,1720968641071,-271.44308553,0.00024657,2]
[332111476,1720968641080,-513.78113598,0.00024657,2]
[332111477,1720968641089,-500.0,0.00024657,2]
[332111479,1720968641098,-500.0,0.00024657,2]
[332111481,1720968641107,-500.0,0.00024657,2]
[332111483,1720968641116,-500.0,0.00024657,2]
[332111485,1720968641125,-504.93201498,0.00024657,2]
[332111487,1720968641135,-142.03599058,0.00024657,2]
[332111489,1720968641147,-357.96400942,0.00024657,2]
[332111491,1720968641156,-334.40980495,0.00024657,2]
[332111493,1720968641166,-500.0,0.00024657,2]
[332111494,1720968641176,-500.0,0.00024657,2]
[332111495,1720968641185,-500.0,0.00024657,2]
[332111496,1720968641195,-500.0,0.00024657,2]
[332111497,1720968641204,-500.0,0.00024657,2]
[332111498,1720968641214,-500.0,0.00024657,2]
[332111499,1720968641223,-323.23972023,0.00024657,2]
[332111501,1720968641233,-500.0,0.00024657,2]
[332111503,1720968641242,-500.0,0.00024657,2]
[332111505,1720968641251,-500.0,0.00024657,2]
[332111507,1720968641263,-500.0,0.00024657,2]
[332111509,1720968641272,-500.0,0.00024657,2]
[332111511,1720968641281,-500.0,0.00024657,2]
[332111513,1720968641290,-503.40248263,0.00024657,2]
[332111515,1720968641299,-500.0,0.00024657,2]
[332111517,1720968641310,-503.84448705,0.00024657,2]
[332111519,1720968641319,-500.0,0.00024657,2]
[332111521,1720968641328,-552.00324419,0.00024657,2]
[332111523,1720968641337,-500.0,0.00024657,2]
[332111525,1720968641348,-500.0,0.00024657,2]
[332111527,1720968641358,-151.0,0.00024657,7]
[332111529,1720968641367,-500.0,0.00024657,2]
[332111531,1720968641376,-500.0,0.00024657,2]
[332111533,1720968641385,-508.41629536,0.00024657,2]
[332111535,1720968641396,-196.824,0.00024657,7]
[332111537,1720968641405,-500.0,0.00024657,2]
[332111539,1720968641414,-500.0,0.00024657,2]
[332111541,1720968641423,-500.0,0.00024657,2]
[332111543,1720968641433,-500.0,0.00024657,2]
[332111545,1720968641443,-504.44886123,0.00024657,2]
[332111547,1720968641453,-500.0,0.00024657,2]
[332111549,1720968641462,-500.0,0.00024657,2]
[332111551,1720968641472,-500.0,0.00024657,2]
[332111553,1720968641481,-500.0,0.00024657,2]
[332111555,1720968641491,-500.0,0.00024657,2]
[332111557,1720968641500,-500.0,0.00024657,2]
[332111559,1720968641510,-501.35577498,0.00024657,2]
[332111561,1720968641520,-500.0,0.00024657,2]
[332111563,1720968641530,-500.0,0.00024657,2]
[332111565,1720968641539,-553.31966395,0.00024657,2]
[332111567,1720968641549,-500.0,0.00024657,2]
[332111569,1720968641558,-500.0,0.00024657,2]
[332111571,1720968641569,-500.0,0.00024657,2]
[332111573,1720968641578,-500.0,0.00024657,2]
[332111575,1720968641588,-500.0,0.00024657,2]
[332111577,1720968641597,-500.0,0.00024657,2]
[332111579,1720968641607,-500.0,0.00024657,2]
[332111581,1720968641616,-501.65633058,0.00024657,2]
[332111583,1720968641626,-500.0,0.00024657,2]
[332111585,1720968641635,-500.0,0.00024657,2]
[332111587,1720968641645,-500.0,0.00024657,2]
[332111589,1720968641654,-500.0,0.00024657,2]
[332111591,1720968641663,-500.0,0.00024657,2]
[332111593,1720968641673,-500.0,0.00024657,2]
[332111595,1720968641682,-356.12996567,0.00024657,2]
[332111597,1720968641691,-500.0,0.00024657,2]
[332111599,1720968641701,-500.0,0.00024657,2]
[332111601,1720968641711,-1500.0,0.00024657,2]
[332111603,1720968641722,-500.0,0.00024657,2]
[332111605,1720968641731,-500.0,0.00024657,2]
[332111607,1720968641741,-500.0,0.00024657,2]
[332111609,1720968641750,-500.0,0.00024657,2]
[332111610,1720968641760,-589.91,0.00024657,2]
[332111612,1720968641769,-506.88886871,0.00024657,2]
[332111614,1720968641778,-500.0,0.00024657,2]
[332111616,1720968641787,-500.0,0.00024657,2]
[332111618,1720968641797,-500.0,0.00024657,2]
[332111620,1720968641807,-500.0,0.00024657,2]
[332111622,1720968641816,-500.0,0.00024657,2]
[332111624,1720968641826,-500.0,0.00024657,2]
[332111626,1720968641836,-500.0,0.00024657,2]
[332111628,1720968641845,-500.0,0.00024657,2]
[332111630,1720968641855,-500.0,0.00024657,2]
[332111632,1720968641864,-151.0,0.00024657,7]
[332111634,1720968641874,-151.0,0.00024657,7]
[332111636,1720968641883,-500.0,0.00024657,2]
[332111638,1720968641893,-505.60185601,0.00024657,2]
[332111640,1720968641903,-500.0,0.00024657,2]
[332111641,1720968641913,-500.0,0.00024657,2]
[332111643,1720968641922,-500.0,0.00024657,2]
[332111645,1720968641932,-500.0,0.00024657,2]
[332111647,1720968641941,-505.97,0.00024657,2]
[332111649,1720968641951,-500.0,0.00024657,2]
[332111651,1720968641961,-500.0,0.00024657,2]
[332111653,1720968641970,-153.47185625,0.00024657,2]
[332111655,1720968641979,-506.21302155,0.00024657,2]
[332111657,1720968641989,-500.0,0.00024657,2]
[332111659,1720968641998,-500.0,0.00024657,2]
[332111661,1720968642007,-500.0,0.00024657,2]
[332111663,1720968642017,-500.0,0.00024657,2]
[332111665,1720968642027,-736.51,0.00024657,2]
[332111667,1720968642036,-500.0,0.00024657,2]
[332111668,1720968642046,-500.0,0.00024657,2]
[332111670,1720968642056,-500.0,0.00024657,2]
[332111672,1720968642065,-500.0,0.00024657,2]
[332111674,1720968642075,-500.0,0.00024657,2]
[332111676,1720968642084,-500.0,0.00024657,2]
[332111678,1720968642094,-570.06247913,0.00024657,2]
[332111680,1720968642104,-528.87270732,0.00024657,2]
[332111682,1720968642114,-500.0,0.00024657,2]
[332111684,1720968642123,-500.0,0.00024657,2]
[332111686,1720968642133,-5.79231004,0.00024657,2]
[332111690,1720968642163,-64.0,0.00024657,2]
[332111952,1720968644636,-430.20768996,0.00024657,2]
[332111953,1720968644646,-500.0,0.00024657,2]
[332111954,1720968644656,-500.0,0.00024657,2]
[332111955,1720968644665,-828.56,0.00024657,2]
[332111956,1720968644674,-500.0,0.00024657,2]
[332111957,1720968644684,-397.23700412,0.00024657,2]
[332111958,1720968644697,-102.76299588,0.00024657,2]
[332111959,1720968644706,-500.0,0.00024657,2]
[332111960,1720968644716,-500.0,0.00024657,2]
[332111961,1720968644725,-500.0,0.00024657,2]
[332111962,1720968644735,-500.0,0.00024657,2]
[332111963,1720968644745,-98.11829614,0.00024657,2]
[332111965,1720968644757,-401.88170386,0.00024657,2]
[332111966,1720968644765,-500.0,0.00024657,2]
[332111967,1720968644775,-500.0,0.00024657,2]
[332111968,1720968644784,-402.44171914,0.00024657,2]
[332111969,1720968644796,-3791.82828086,0.00024657,2]
[332111970,1720968644805,-500.0,0.00024657,2]
[332111971,1720968644814,-500.0,0.00024657,2]
[332111972,1720968644823,-151.88407755,0.00024657,2]
[332111973,1720968644963,-348.11592245,0.00024657,2]
[332111974,1720968644973,-500.0,0.00024657,2]
[332111975,1720968644982,-500.0,0.00024657,2]
[332111976,1720968644992,-500.0,0.00024657,2]
[332111977,1720968645001,-500.0,0.00024657,2]
[332111978,1720968645011,-511.32097125,0.00024657,2]
[332111979,1720968645020,-500.0,0.00024657,2]
[332111980,1720968645030,-500.0,0.00024657,2]
[332111982,1720968645039,-500.0,0.00024657,2]
[332111984,1720968645048,-500.0,0.00024657,2]
[332111986,1720968645057,-500.0,0.00024657,2]
[332111988,1720968645067,-500.0,0.00024657,2]
[332111990,1720968645077,-500.0,0.00024657,2]
[332111992,1720968645087,-500.0,0.00024657,2]
[332111994,1720968645097,-500.0,0.00024657,2]
[332111996,1720968645107,-500.0,0.00024657,2]
[332111998,1720968645117,-500.0,0.00024657,2]
[332112000,1720968645126,-406.03745896,0.00024657,2]
[332112002,1720968645136,-503.35804317,0.00024657,2]
[332112004,1720968645145,-506.45771665,0.00024657,2]
[332112005,1720968645155,-205.561622,0.00024657,7]
[332112006,1720968645164,-151.0,0.00024657,7]
[332112007,1720968645174,-205.561622,0.00024657,7]
[332112008,1720968645185,-500.0,0.00024657,2]
[332112009,1720968645195,-500.0,0.00024657,2]
[332112010,1720968645204,-151.0,0.00024657,7]
[332112011,1720968645213,-500.0,0.00024657,2]
[332112012,1720968645222,-500.0,0.00024657,2]
[332112013,1720968645232,-500.0,0.00024657,2]
[332112014,1720968645241,-481.65124058,0.00024657,2]
[332112201,1720968647133,-18.34875942,0.00024657,2]
[332112203,1720968647143,-146.79677758,0.00024657,2]
[332112205,1720968647154,-353.20322242,0.00024657,2]
[332112207,1720968647164,-500.0,0.00024657,2]
[332112209,1720968647173,-526.47357214,0.00024657,2]
[332112211,1720968647182,-500.0,0.00024657,2]
[332112213,1720968647194,-500.0,0.00024657,2]
[332112215,1720968647203,-500.0,0.00024657,2]
[332112217,1720968647213,-500.0,0.00024657,2]
[332112219,1720968647222,-500.0,0.00024657,2]
[332112221,1720968647231,-500.0,0.00024657,2]
[332112223,1720968647241,-500.0,0.00024657,2]
[332112225,1720968647250,-500.0,0.00024657,2]
[332112227,1720968647263,-500.0,0.00024657,2]
[332112229,1720968647272,-217.059481,0.00024657,7]
[332112230,1720968647281,-217.059481,0.00024657,7]
[332112232,1720968647290,-500.0,0.00024657,2]
[332112234,1720968647299,-500.0,0.00024657,2]
[332112236,1720968647309,-500.0,0.00024657,2]
[332112238,1720968647318,-500.0,0.00024657,2]
[332112240,1720968647327,-500.0,0.00024657,2]
[332112242,1720968647337,-1025.3,0.00024657,2]
[332112244,1720968647347,-500.0,0.00024657,2]
[332112246,1720968647357,-500.0,0.00024657,2]
[332112248,1720968647367,-500.0,0.00024657,2]
[332112250,1720968647376,-6.01830379,0.00024657,2]
[332112787,1720969397182,154.96683818,0.0002525,120]
[332112788,1720969558190,-229.54696183,0.00018,2]
[332112789,1720969626162,-38.31669393,0.00018,2]
[332112790,1720969626183,-158.72193478,0.0002,2]
[332112791,1720969626205,-304.016497,0.00021096,2]
[332112792,1720969626231,-554.80121194,0.00021096,2]
[332112793,1720969627109,-157.69878806,0.00021096,2]
[332112794,1720969627130,-96.37075676,0.00022341,2]
[332112795,1720969631087,-116.59955604,0.00022341,2]
[332112796,1720969631110,-133.40044396,0.00022341,2]
[332112797,1720969632122,-42.17232134,0.00022341,2]
[332112798,1720969632146,-150.0,0.00022557,2]
[332112799,1720969632167,-169.72486,0.00022788,2]
[332112800,1720969632188,-167.919185,0.00022935,2]
[332112801,1720969632212,-153.19257668,0.00022948,2]
[332112802,1720969637111,-146.80742332,0.00022948,2]
[332112803,1720969637133,-581.49196468,0.00022949,2]
[332112804,1720969639121,-980.54481249,0.00022949,2]
[332112805,1720969745119,-195.30405646,0.00018,2]
[332112806,1720969774103,-153.2834771,0.00020849,2]
[332112807,1720969774127,-38.02128649,0.00021917,2]
[332112839,1720969831909,-1356.3585812,0.00021917,2]
[332112841,1720969831918,-385.6506818,0.00022814,2]
[332112867,1720969838136,-24514.3493182,0.00022814,2]
[332112868,1720969838146,-154.55950541,0.00022943,2]
[332112869,1720969838155,-270.15349974,0.00022949,2]
[332112870,1720969838165,-167.919185,0.00023013,2]
[332112871,1720969838174,-167.919185,0.00023163,2]
[332112872,1720969838183,-167.919185,0.00023313,2]
[332112873,1720969838193,-167.919185,0.00023463,2]
[332112874,1720969838202,-167.919185,0.00023613,2]
[332112875,1720969838212,-167.919185,0.00023763,2]
[332112876,1720969838222,-167.919185,0.00023912,2]
[332112877,1720969838231,-150.112233,0.00024,5]
[332112878,1720969838240,-153.0,0.00024027,2]
[332112879,1720969838250,-153.0,0.00024027,2]
[332112880,1720969838259,-153.0,0.00024027,2]
[332112881,1720969838268,-153.0,0.00024027,2]
[332112882,1720969838277,-167.919185,0.00024062,2]
[332112883,1720969838286,-153.0,0.00024078,2]
[332112884,1720969838296,-167.919185,0.00024212,2]
[332112885,1720969838305,-150.112233,0.000245,2]
[332112886,1720969838314,-800.2682612,0.00024547,2]
[332112887,1720969838325,-30639.9492364,0.00024647,3]
[332112888,1720969838336,-580.38,0.00024647,3]
[332112889,1720969838346,-6737.40117741,0.00024657,5]
[332112890,1720969838356,-500.0,0.00024657,2]
[332112891,1720969838367,-500.0,0.00024657,2]
[332112892,1720969838376,-500.0,0.00024657,2]
[332112893,1720969838385,-500.0,0.00024657,2]
[332112894,1720969838395,-500.0,0.00024657,2]
[332112895,1720969838404,-500.0,0.00024657,2]
[332112896,1720969838413,-500.0,0.00024657,2]
[332112897,1720969838424,-500.0,0.00024657,2]
[332112898,1720969838434,-500.0,0.00024657,2]
[332112899,1720969838444,-500.0,0.00024657,2]
[332112900,1720969838454,-500.0,0.00024657,2]
[332112901,1720969838463,-500.0,0.00024657,2]
[332112902,1720969838472,-500.0,0.00024657,2]
[332112903,1720969838481,-469.51986175,0.00024657,2]
[332112904,1720969838491,-500.0,0.00024657,2]
[332112905,1720969838501,-500.0,0.00024657,2]
[332112906,1720969838510,-502.74929534,0.00024657,2]
[332112907,1720969838519,-500.0,0.00024657,2]
[332112908,1720969838530,-500.0,0.00024657,2]
[332112909,1720969838540,-500.0,0.00024657,2]
[332112910,1720969838550,-500.0,0.00024657,2]
[332112911,1720969838559,-500.0,0.00024657,2]
[332112912,1720969838569,-440.87321893,0.00024657,2]
[332112913,1720969838578,-500.0,0.00024657,2]
[332112914,1720969838587,-500.0,0.00024657,2]
[332112915,1720969838597,-500.0,0.00024657,2]
[332112916,1720969838607,-500.0,0.00024657,2]
[332112917,1720969838616,-500.0,0.00024657,2]
[332112918,1720969838629,-509.73621863,0.00024657,2]
[332112919,1720969838638,-541.39600267,0.00024657,2]
[332112920,1720969838649,-500.0,0.00024657,2]
[332112921,1720969838658,-500.0,0.00024657,2]
[332112922,1720969838669,-500.0,0.00024657,2]
[332112923,1720969838679,-500.0,0.00024657,2]
[332112924,1720969838690,-500.0,0.00024657,2]
[332112925,1720969838701,-506.92586096,0.00024657,2]
[332112926,1720969838712,-504.427958,0.00024657,2]
[332112927,1720969838721,-502.68106688,0.00024657,2]
[332112928,1720969838731,-503.72255814,0.00024657,2]
[332112929,1720969838741,-500.0,0.00024657,2]
[332112930,1720969838751,-500.0,0.00024657,2]
[332112931,1720969838762,-500.0,0.00024657,2]
[332112932,1720969838772,-224.66318264,0.00024657,2]
[332112933,1720969838782,-505.30438848,0.00024657,2]
[332112934,1720969838883,-500.0,0.00024657,2]
[332112935,1720969838895,-500.0,0.00024657,2]
[332112936,1720969838904,-500.0,0.00024657,2]
[332112937,1720969838913,-519.11166654,0.00024657,2]
[332112938,1720969838923,-500.0,0.00024657,2]
[332112939,1720969838933,-500.0,0.00024657,2]
[332112940,1720969838942,-265.16546676,0.00024657,2]
[332112941,1720969838951,-500.0,0.00024657,2]
[332112942,1720969838960,-500.0,0.00024657,2]
[332112943,1720969838970,-500.0,0.00024657,2]
[332112944,1720969838979,-509.33569418,0.00024657,2]
[332112945,1720969838989,-500.0,0.00024657,2]
[332112946,1720969838999,-500.0,0.00024657,2]
[332112947,1720969839009,-500.0,0.00024657,2]
[332112948,1720969839018,-500.0,0.00024657,2]
[332112949,1720969839027,-500.0,0.00024657,2]
[332112950,1720969839036,-500.0,0.00024657,2]
[332112951,1720969839046,-469.03692436,0.00024657,2]
[332112952,1720969839055,-500.0,0.00024657,2]
[332112953,1720969839064,-500.0,0.00024657,2]
[332112954,1720969839073,-500.0,0.00024657,2]
[332112955,1720969839083,-500.0,0.00024657,2]
[332112956,1720969839092,-502.01693966,0.00024657,2]
[332112957,1720969839102,-500.0,0.00024657,2]
[332112958,1720969839112,-500.0,0.00024657,2]
[332112959,1720969839121,-500.0,0.00024657,2]
[332112960,1720969839130,-500.0,0.00024657,2]
[332112961,1720969839139,-500.0,0.00024657,2]
[332112962,1720969839149,-500.0,0.00024657,2]
[332112963,1720969839158,-500.0,0.00024657,2]
[332112964,1720969839167,-500.0,0.00024657,2]
[332112965,1720969839176,-503.41116129,0.00024657,2]
[332112966,1720969839185,-500.0,0.00024657,2]
[332112967,1720969839195,-1500.0,0.00024657,2]
[332112968,1720969839204,-766.5,0.00024657,2]
[332112969,1720969839212,-766.5,0.00024657,2]
[332112970,1720969839222,-766.5,0.00024657,2]
[332112971,1720969839231,-500.0,0.00024657,2]
[332112972,1720969839241,-766.5,0.00024657,2]
[332112973,1720969839250,-565.33,0.00024657,2]
[332112974,1720969839259,-500.0,0.00024657,2]
[332112975,1720969839268,-500.0,0.00024657,2]
[332112976,1720969839278,-500.0,0.00024657,2]
[332112977,1720969839287,-514.76384233,0.00024657,2]
[332112978,1720969839296,-500.0,0.00024657,2]
[332112979,1720969839305,-520.84573661,0.00024657,2]
[332112980,1720969839314,-500.0,0.00024657,2]
[332112981,1720969839323,-500.0,0.00024657,2]
[332112982,1720969839332,-500.0,0.00024657,2]
[332112983,1720969839341,-500.0,0.00024657,2]
[332112984,1720969839350,-500.0,0.00024657,2]
[332112985,1720969839359,-500.0,0.00024657,2]
[332112986,1720969839369,-500.0,0.00024657,2]
[332112987,1720969839378,-500.0,0.00024657,2]
[332112988,1720969839388,-500.0,0.00024657,2]
[332112989,1720969839398,-500.0,0.00024657,2]
[332112990,1720969839407,-500.0,0.00024657,2]
[332112991,1720969839417,-500.0,0.00024657,2]
[332112992,1720969839426,-500.0,0.00024657,2]
[332112993,1720969839435,-500.0,0.00024657,2]
[332112995,1720969839445,-548.64790125,0.00024657,2]
[332112996,1720969839454,-500.0,0.00024657,2]
[332112997,1720969839464,-500.0,0.00024657,2]
[332112998,1720969839473,-506.70019399,0.00024657,2]
[332112999,1720969839482,-503.42071233,0.00024657,2]
[332113000,1720969839491,-500.0,0.00024657,2]
[332113001,1720969839500,-153.47185625,0.00024657,2]
[332113002,1720969839510,-393.89739677,0.00024657,2]
[332113003,1720969839519,-506.21302155,0.00024657,2]
[332113004,1720969839528,-500.0,0.00024657,2]
[332113005,1720969839537,-500.0,0.00024657,2]
[332113006,1720969839546,-500.0,0.00024657,2]
[332113007,1720969839555,-769.31,0.00024657,2]
[332113008,1720969839565,-500.0,0.00024657,2]
[332113009,1720969839575,-500.0,0.00024657,2]
[332113010,1720969839585,-500.0,0.00024657,2]
[332113011,1720969839594,-500.0,0.00024657,2]
[332113013,1720969839604,-500.0,0.00024657,2]
[332113015,1720969839613,-500.0,0.00024657,2]
[332113018,1720969839623,-500.0,0.00024657,2]
[332113022,1720969839635,-500.0,0.00024657,2]
[332113024,1720969839645,-500.0,0.00024657,2]
[332113027,1720969839654,-500.0,0.00024657,2]
[332113029,1720969839663,-500.0,0.00024657,2]
[332113032,1720969839674,-500.0,0.00024657,2]
[332113035,1720969839682,-500.0,0.00024657,2]